[Event "1000GM Memorial Day NY IM-B 2023"]
[Site "New York"]
[Date "2023.05.26"]
[Round "1.5"]
[White "Luo, Terry"]
[Black "Nakada, Akira"]
[Result "1/2-1/2"]
[ECO "E08"]
[WhiteElo "2321"]
[BlackElo "2321"]
[Annotator "TA"]
[PlyCount "71"]
[EventDate "2023.05.23"]
[EventType "schev"]
[EventCountry "USA"]
[SourceTitle "playchess.com"]
[Source "ChessBase"]
[SourceQuality "1"]
[TimeControl "5400+30"]

{[%evp 20,71,0,0,4,-24,-22,-39,-40,-40,-47,-46,-41,-60,-10,0,0,0,0,0,7,8,15,0,0,0,0,0,0,0,0,0,0,0,0,0,0,0,0,0,0,0,0,0,0,0,0,0,0,0,0,0,0,0]} 1. d4 {[%emt 0:00:02]} Nf6 {[%emt 0:00:14]} 2. c4 {[%emt 0:00:04]} e6 {[%emt 0:00:04]} 3. Nf3 {[%emt 0:00:03]} d5 {[%emt 0:00:26]} 4. g3 {[%emt 0:00:05]} Bb4+ {[%emt 0:00:16]} 5. Bd2 {[%emt 0:00:04]} Be7 {[%emt 0:00:16]} 6. Bg2 {[%emt 0:00:06]} O-O {[%emt 0:00:20]} 7. O-O {[%emt 0:00:23]} Nbd7 {[%emt 0:00:30]} 8. Qc2 {[%emt 0:01:02]} c6 {[%emt 0:00:32]} 9. Bf4 {[%emt 0:03:09]} b6 {[%emt 0:01:16]} 10. Rd1 {[%emt 0:00:14] 10.Nbd2 is more fashionable.} Bb7 {[%emt 0:01:11]} 11. Ne5 {[%emt 0:03:41]} Nh5 {[%emt 0:00:29] E08: Closed Catalan: Main Line: 7 Qc2.} 12. Nc3 {[%emt 0:08:45]} Nxe5 {[%emt 0:09:41] [#]} 13. Bxe5 $146 {[%emt 0:04:52]} ({Predecessor:} 13. dxe5 Nxf4 14. gxf4 Bc5 15. Ne4 Qh4 16. Nxc5 bxc5 17. e3 f6 18. cxd5 cxd5 19. Qxc5 fxe5 {1-0 Gaehwiler,G (2406)-Aczel,G (2516) BL2-Sued 2122 2022 (7.1)}) 13... f6 {[%emt 0:02:44] Black is slightly better.} ({Of course not} 13... dxc4 14. e3 $11) 14. Bf4 {[%emt 0:00:58]} Nxf4 {[%emt 0:00:06]} 15. gxf4 {[%emt 0:00:01]} f5 {[%emt 0:00:08]} 16. e3 {[%emt 0:02:24]} a5 {[%emt 0:01:26]} (16... Bd6 $15) 17. Rac1 $11 {[%emt 0:07:21] The position is equal.} Ba6 {[%emt 0:03:14]} 18. cxd5 {[%emt 0:10:20]} cxd5 {[%emt 0:00:07]} 19. Bf1 {[%emt 0:00:07]} Bxf1 {[%emt 0:03:35]} 20. Rxf1 {[%emt 0:00:11]} Rc8 {[%emt 0:15:04]} 21. Qe2 {[%emt 0:01:23]} Kh8 {[%emt 0:41:12]} 22. Kh1 {[%emt 0:08:15]} Rg8 {[%emt 0:02:49]} 23. Nb5 {[%emt 0:04:21]} Qd7 {[%emt 0:01:04]} 24. a4 {[%emt 0:01:05]} Bb4 {[%emt 0:01:20]} 25. b3 {[%emt 0:03:31]} g6 {[%emt 0:03:09]} 26. Qb2 {[%emt 0:01:41]} h6 {[%emt 0:02:43]} 27. Rxc8 {[%emt 0:03:06]} Rxc8 {[%emt 0:00:01]} 28. Rc1 {[%emt 0:00:02] Dodges Qc6} Rc6 {[%emt 0:00:32]} 29. Kg2 {[%emt 0:03:10]} g5 {[%emt 0:03:21]} 30. fxg5 {[%emt 0:02:22]} hxg5 {[%emt 0:00:02]} 31. Rxc6 {[%emt 0:00:16]} Qxc6 {[%emt 0:00:05] KQB-KQN} 32. Qe2 {[%emt 0:00:02]} Kg7 {[%emt 0:00:33]} 33. Qf3 {[%emt 0:04:04]} Qc2 {[%emt 0:01:53]} 34. Qg3 {[%emt 0:00:14]} Qe4+ {[%emt 0:00:19]} (34... Qxb3 $2 35. Qxg5+ Kf7 36. Qh5+ Kg7 37. Nc7 Qxa4 38. Nxe6+ Kf6 39. Nf4 $18) 35. Qf3 {[%emt 0:00:51]} Qc2 {[%emt 0:00:25]} 36. Qg3 {[%emt 0:00:04] Weighted Error Value: White=0.03 (flawless) /Black=0.03 (flawless)} 1/2-1/2

[Event "1000GM Memorial Day NY IM-B 2023"]
[Site "New York"]
[Date "2023.05.26"]
[Round "1.6"]
[White "Espinosa, Pedro"]
[Black "Bisiriyu-Salam, Oluwaseun"]
[Result "1/2-1/2"]
[ECO "A52"]
[WhiteElo "2229"]
[BlackElo "2011"]
[Annotator "TA"]
[PlyCount "77"]
[EventDate "2023.05.23"]
[EventType "schev"]
[EventCountry "USA"]
[SourceTitle "playchess.com"]
[Source "ChessBase"]
[SourceQuality "1"]
[TimeControl "5400+30"]

{[%evp 9,77,19,16,19,40,25,34,39,42,23,20,0,0,0,0,0,0,-7,0,0,0,0,6,-7,-14,-7,-3,-133,-128,-159,-163,-198,-198,-177,-104,-102,-104,-193,-193,-187,-182,-191,-193,-189,-95,-84,-35,-54,-39,-48,0,-172,-44,-112,-114,-458,0,0,0,0,0,0,0,0,0,0,0,0,0,0]} 1. d4 {[%emt 0:00:02]} Nf6 {[%emt 0:38:53]} 2. c4 {[%emt 0:00:07]} e5 {[%emt 0:00:04]} 3. dxe5 {[%emt 0:00:06]} Ng4 {[%emt 0:00:05]} 4. e4 {[%emt 0:02:38]} Nxe5 {[%emt 0:00:07]} 5. f4 {[%emt 0:00:42]} Nec6 {[%emt 0:00:06]} 6. Nc3 {[%emt 0:01:25] A52: Budapest Gambit.} Bb4 {[%emt 0:00:13]} 7. Nge2 {[%emt 0:01:58]} a5 $1 {[%emt 0:00:56]} 8. Be3 {[%emt 0:02:55] White is slightly better.} Na6 {[%emt 0:00:11]} 9. g3 {[%emt 0:03:45]} d6 {[%emt 0:00:17]} 10. a3 {[%emt 0:04:28]} Bc5 {[%emt 0:00:22] [#]} 11. Bxc5 $146 {[%emt 0:02:07]} ({Predecessor:} 11. Qd2 Be6 12. Nd5 a4 13. Bg2 Bxd5 14. cxd5 Na5 15. Qxa5 Bxe3 16. Qxa4+ Kf8 17. Nc3 {½-½ Socko,B (2636)-Psyk,R (2411) PGNiG POL Cup KO rapid 2022 (3.1)}) 11... Nxc5 {[%emt 0:01:22]} 12. Bg2 {[%emt 0:00:51]} a4 {[%emt 0:02:05]} 13. O-O {[%emt 0:03:59]} O-O {[%emt 0:00:40]} 14. Qc2 {[%emt 0:04:31]} Be6 {[%emt 0:11:19]} 15. Nd5 {[%emt 0:03:16]} f5 {[%emt 0:00:37]} 16. e5 {[%emt 0:13:38]} dxe5 {[%emt 0:02:52]} 17. fxe5 {[%emt 0:00:49]} Nxe5 {[%emt 0:07:48] ...c6 would be deadly.} 18. Rad1 {[%emt 0:03:20]} (18. Qc3 $11 {keeps the balance.} Qd6 19. Rad1) 18... c6 $17 {[%emt 0:01:40]} 19. Qc3 {[%emt 0:10:50] Wards off Qa5} Ned7 {[%emt 0:05:26]} 20. Ndf4 {[%emt 0:03:17][%cal Bd5f4,Bf4e2,Be2g3][%mdl 32] [#]} Bf7 $1 {[%emt 0:01:52][%cal Be6f7,Bf7g6,Bg6f5,Bf5g4][%mdl 32]} 21. Nd4 {[%emt 0:04:15]} Qf6 {[%emt 0:02:53]} (21... g6 $19 22. Rde1 Re8 23. Rxe8+ Qxe8) 22. Nfe2 {[%emt 0:06:54]} Bg6 {[%emt 0:02:12]} 23. g4 {[%emt 0:04:58]} (23. Bh3 $17 {might work better.}) 23... Qg5 $19 {[%emt 0:02:47]} 24. gxf5 {[%emt 0:03:56]} Bxf5 {[%emt 0:00:24]} 25. Ng3 {[%emt 0:01:53][%cal Rd4f5]} Bg4 {[%emt 0:01:55]} 26. Rde1 {[%emt 0:00:44]} h5 {[%emt 0:00:14]} (26... Rxf1+ $19 27. Nxf1 Rf8) 27. h3 $17 {[%emt 0:03:10] [#]} Rxf1+ {[%emt 0:04:43]} (27... h4 $1 $17 28. Rxf8+ Rxf8) 28. Bxf1 $15 {[%emt 0:06:03]} h4 {[%emt 0:00:20] White must now prevent ...Bh5.} 29. hxg4 {[%emt 0:00:53]} Qxg4 {[%emt 0:00:15]} (29... hxg3 $15 30. Nf5 Rf8 31. Ne7+ Kf7) 30. Re3 $2 {[%emt 0:01:18]} Nf6 {[%emt 0:03:17]} ({Resist} 30... hxg3 31. Rxg3 Qf4 32. Nf5 $14) ({Black should play} 30... Rf8 $19 {And now ...Rf6 would win.} 31. Nde2 Qg6 {[%mdl 64] Pin}) 31. Be2 {[%emt 0:02:36]} (31. Ndf5 $1 $15 Nce4 {[%mdl 64] Pin} 32. Be2) 31... Qg5 $17 {[%emt 0:00:49][%mdl 1088] Pin. Black has strong compensation.} 32. Qc1 $2 {[%emt 0:03:15][%mdl 8192]} Nce4 $2 {[%emt 0:00:38]} ({But not} 32... hxg3 33. Re8+ Rxe8 34. Qxg5 $18) (32... Nfe4 $19 33. Rc3 Qxc1+ 34. Rxc1 Nxg3) 33. Ne6 $11 {[%emt 0:00:30] The position is equal.} Qg6 {[%emt 0:01:18][%mdl 64] Pin} 34. Nf4 {[%emt 0:00:39]} Qg5 {[%emt 0:00:10][%mdl 64] Pin} 35. Ne6 {[%emt 0:00:27]} (35. Nh3 $5 Qg6 $8 {[%mdl 64] Pin} 36. Nf4 $11) 35... Qg6 {[%emt 0:00:03][%mdl 64] Pin} 36. Nf4 {[%emt 0:01:18]} Qg5 {[%emt 0:00:01][%mdl 64] Pin} 37. Nh3 {[%emt 0:00:31]} Qg6 {[%emt 0:00:12][%mdl 64] Pin} 38. Nf4 {[%emt 0:00:51]} Qg5 {[%emt 0:00:01][%mdl 64] Pin} 39. Ne6 {[%emt 0:00:28] Weighted Error Value: White=0.38/Black=0.34} 1/2-1/2

[Event "1000GM Memorial Day NY IM-B 2023"]
[Site "New York"]
[Date "2023.05.26"]
[Round "2.1"]
[White "Lee, Alice"]
[Black "Chen, Justin"]
[Result "0-1"]
[ECO "D35"]
[WhiteElo "2391"]
[BlackElo "2333"]
[Annotator "TA"]
[PlyCount "118"]
[EventDate "2023.05.23"]
[EventType "schev"]
[EventCountry "USA"]
[SourceTitle "playchess.com"]
[Source "ChessBase"]
[SourceQuality "1"]
[TimeControl "5400+30"]

{[%evp 12,118,24,25,18,0,0,9,31,15,28,18,11,33,18,11,23,15,16,14,16,16,31,24,26,29,9,0,0,-24,-20,-32,-24,-16,-16,-21,-14,-18,-12,-7,0,0,0,0,0,0,0,-108,-112,-112,-110,-103,-99,-151,-137,-237,-222,-234,-228,-216,-214,-254,-253,-301,-359,-359,-360,-359,-356,-341,-334,-439,-432,-418,-415,-939,-900,-1262,-1152,-5345,-5137,-5065,-4133,-3557,-2885,-1827,-1698,-5521,-2524,-4806,-4790,-4133,-962,-5289,-5398,-5644,-5257,-29973,-1451,-29979,-29980,-29980,-29981,-29981,-29982,-29982,-29983,-29986,-29987]} 1. d4 {[%emt 0:00:02]} Nf6 {[%emt 0:00:10]} 2. c4 {[%emt 0:00:05]} e6 {[%emt 0:00:04]} 3. Nc3 {[%emt 0:00:05]} d5 {[%emt 0:00:28]} 4. cxd5 {[%emt 0:00:07]} Nxd5 {[%emt 0:00:03]} 5. e4 {[%emt 0:00:10]} Nxc3 {[%emt 0:00:03]} 6. bxc3 {[%emt 0:00:06]} c5 {[%emt 0:00:03]} 7. Rb1 {[%emt 0:00:07]} Be7 {[%emt 0:00:06] D35: Queen's Gambit Declined: Exchange Variation.} 8. Nf3 {[%emt 0:00:15]} O-O {[%emt 0:00:06]} 9. Bc4 {[%emt 0:00:42] 9.h4 is the fancy move.} a6 {[%emt 0:00:45] The position is equal.} 10. a4 {[%emt 0:00:04]} Qc7 {[%emt 0:00:10]} 11. Bd3 {[%emt 0:00:12]} cxd4 {[%emt 0:00:27]} 12. cxd4 {[%emt 0:00:07]} Nc6 {[%emt 0:00:04][%cal Oc6d4]} 13. O-O {[%emt 0:00:12]} Nb4 {[%emt 0:00:03]} 14. Ba3 {[%emt 0:00:07]} Nxd3 {[%emt 0:00:04]} 15. Qxd3 {[%emt 0:00:07]} Bxa3 {[%emt 0:00:04]} 16. Qxa3 {[%emt 0:00:06]} Bd7 {[%emt 0:00:36] Black is weak on the dark squares} 17. Ne5 {[%emt 0:19:39]} Rfc8 {[%emt 0:01:07]} 18. Rfc1 {[%emt 0:05:09]} Qd8 {[%emt 0:00:07]} 19. Rxb7 {[%emt 0:04:35]} (19. Rd1 {simplifies} Qc7 20. Nxd7 Qxd7 21. a5) 19... Bxa4 {[%emt 0:00:25][%mdl 64] [#] Discovered Attack} 20. Ra1 $146 {[%emt 0:15:06]} ({Predecessor:} 20. Nxf7 Qxd4 21. h3 Qxe4 22. Nd6 Rxc1+ 23. Qxc1 Qd4 24. Qa3 Rf8 25. Qg3 Bc6 26. Re7 {0-1 Maurizzi,M (2502)-Zhu,J (2478) Tata Steel-B 84th 2022 (4)}) 20... Be8 {[%emt 0:11:21]} (20... Qxd4 $2 21. Nf3 Qxe4 22. Rb4 $18 (22. Qxa4 $2 Qxa4 23. Rbb1 Qf4 $19)) 21. Rd1 {[%emt 0:05:52]} Rcb8 {[%emt 0:17:56]} 22. Rxb8 {[%emt 0:01:21]} Qxb8 $40 {[%emt 0:00:08][%mdl 128] Black has some attack.} 23. Nc4 {[%emt 0:05:27] [#]} a5 $1 {[%emt 0:09:38]} 24. d5 {[%emt 0:07:51]} exd5 {[%emt 0:00:25]} 25. exd5 {[%emt 0:00:03]} Qb4 {[%emt 0:03:37]} 26. Qxb4 {[%emt 0:01:13]} axb4 $11 {[%emt 0:00:02][%mdl 4096] Endgame KRB-KRN} 27. d6 {[%emt 0:00:37] Black must now prevent Nb6.} Bb5 {[%emt 0:06:32]} 28. Nb6 {[%emt 0:03:53]} (28. d7 $5 Rd8 $8 29. Nb6 $11) 28... Rd8 {[%emt 0:04:20]} 29. Nd5 {[%emt 0:07:04]} (29. f4 $11 {remains equal.}) 29... b3 $17 {[%emt 0:02:18][%cal Ob3b2] Strongly threatening ...b2! White is on the road to losing.} (29... Rxd6 $2 30. Ne7+ Kf8 31. Rxd6 $18) 30. Nc3 {[%emt 0:00:53]} Bd7 {[%emt 0:02:15] And now ...b2 would win.} 31. Rb1 {[%emt 0:12:38]} Rb8 {[%emt 0:11:52]} 32. f3 {[%emt 0:03:07]} (32. Kf1 $142) 32... Kf8 {[%emt 0:06:11]} 33. g4 {[%emt 0:09:58]} (33. Kf2 $17) 33... Ke8 {[%emt 0:04:49]} 34. Kf2 {[%emt 0:00:00]} Bc6 {[%emt 0:00:41]} 35. Ke3 {[%emt 0:00:18]} Kd7 {[%emt 0:00:08]} 36. Rd1 {[%emt 0:00:20]} b2 {[%emt 0:02:35]} 37. f4 {[%emt 0:00:48] [#]} Ba4 $1 {[%emt 0:04:14][%mdl 576] Deflection, Promotion} 38. Nxa4 {[%emt 0:00:31] Threatens to win with Nc5+.} b1=Q {[%emt 0:00:09]} ({Weaker is} 38... b1=B 39. Nc5+ Kd8 40. Rd5 $18) 39. Nc5+ {[%emt 0:00:04]} Kc6 {[%emt 0:00:04]} 40. Rxb1 {[%emt 0:00:04]} Rxb1 $19 {[%emt 0:00:03] KR-KN} 41. d7 {[%emt 0:01:21]} Rd1 {[%emt 0:00:30]} (41... Kxc5 $2 42. d8=Q (42. d8=B $2 {perishes.} Rb3+ 43. Ke4 Rh3 $19) 42... Rb3+ 43. Kf2 $18) 42. Ne4 {[%emt 0:00:29]} Rxd7 {[%emt 0:00:13]} (42... Kxd7 $2 {too greedy.} 43. Kf2 $19) 43. f5 {[%emt 0:00:22]} (43. h4 $142) 43... Kd5 {[%emt 0:01:56]} 44. Kf4 {[%emt 0:00:31]} Rc7 {[%emt 0:00:02]} 45. Ng5 {[%emt 0:00:35]} h6 {[%emt 0:00:17]} 46. Nf3 {[%emt 0:00:05]} Rc4+ {[%emt 0:01:10]} 47. Kg3 {[%emt 0:00:02]} Rc3 {[%emt 0:00:19] ( -> ...Ke4)} 48. Kf4 {[%emt 0:00:11]} Rb3 {[%emt 0:00:05] aiming for ...Rb4+.} 49. h3 {[%emt 0:01:01]} Rb4+ {[%emt 0:00:18]} 50. Ke3 {[%emt 0:00:26]} Ra4 {[%emt 0:00:26]} 51. Ng1 {[%emt 0:00:34]} Re4+ {[%emt 0:00:51]} 52. Kf3 {[%emt 0:00:20]} Ke5 {[%emt 0:00:06] ...Re1 is the strong threat.} 53. Ne2 {[%emt 0:01:20] [#]} h5 $1 {[%emt 0:02:31]} 54. gxh5 {[%emt 0:00:30]} (54. Nc3 Rd4) 54... Rh4 {[%emt 0:00:31]} (54... Kxf5 55. Ng3+ Ke5 56. Nxe4 $18) (54... Rxe2 $142 55. h6 Rd2 56. h7 Rd8 57. f6 Kxf6 58. h4 Rh8 59. Kf4 Rxh7 60. Kg4 Ke5 61. Kf3 Rxh4 62. Ke3 g5 63. Ke2 Rd4 64. Kf2 Kf4 65. Ke2 g4 66. Kf2 Re4 67. Kg2 g3 68. Kg1 Kf3 69. Kf1 Re8 70. Kg1 Re1#) 55. Ng3 {[%emt 0:00:34]} Rxh3 {[%emt 0:00:02] Black mates.} 56. Kg4 {[%emt 0:00:16] [#]} Rxg3+ $1 {[%emt 0:00:06][%mdl 576] Remove Defender, Deflection} 57. Kxg3 {[%emt 0:00:06]} Kxf5 {[%emt 0:00:03]} 58. Kh4 {[%emt 0:00:20]} Kf4 {[%emt 0:00:01]} 59. h6 {[%emt 0:00:24]} gxh6 {[%emt 0:00:05] Weighted Error Value: White=0.84/Black=0.09 (flawless)} 0-1

[Event "1000GM Memorial Day NY IM-B 2023"]
[Site "New York"]
[Date "2023.05.26"]
[Round "2.2"]
[White "Luo, Terry"]
[Black "Ansh M Shah"]
[Result "1-0"]
[ECO "E05"]
[WhiteElo "2321"]
[BlackElo "2171"]
[Annotator "TA"]
[PlyCount "131"]
[EventDate "2023.05.23"]
[EventType "schev"]
[EventCountry "USA"]
[SourceTitle "playchess.com"]
[Source "ChessBase"]
[SourceQuality "1"]
[TimeControl "5400+30"]

{[%evp 18,131,21,19,17,13,17,0,1,10,20,14,22,27,11,18,4,0,11,12,22,18,28,18,25,20,20,25,19,20,16,19,55,40,106,93,97,84,365,93,132,106,99,107,87,42,208,184,250,260,278,267,358,347,393,370,323,283,283,249,420,420,495,495,29960,29963,29959,29961,29958,29962,6780,10346,6187,5639,5506,5297,29976,29977,29977,29978,29978,29977,29978,29979,29979,0,29977,0,29977,29978,29978,29979,29979,29980,29980,29981,29981,29982,29982,29983,29983,29984,29985,29986,29986,29987,29987,29988,29988,29989,29989,29990,29991,29988,29989,29990]} 1. d4 {[%emt 0:00:02]} Nf6 {[%emt 0:00:08]} 2. c4 {[%emt 0:00:04]} e6 {[%emt 0:00:08]} 3. Nf3 {[%emt 0:00:03]} d5 {[%emt 0:00:07]} 4. g3 {[%emt 0:00:03]} Be7 {[%emt 0:00:11]} 5. Bg2 {[%emt 0:00:05]} O-O {[%emt 0:00:07]} 6. O-O {[%emt 0:00:03]} dxc4 {[%emt 0:00:07]} 7. Qc2 {[%emt 0:00:05]} a6 {[%emt 0:00:06]} 8. a4 {[%emt 0:00:02]} Bd7 {[%emt 0:00:06]} 9. Qxc4 {[%emt 0:00:04]} Bc6 {[%emt 0:00:07]} 10. Bg5 {[%emt 0:00:06]} Nbd7 {[%emt 0:00:12][%cal Bb8d7,Bd7f6,Bf6d5,Bd5b4][%mdl 32] E05: Open Catalan: 5 Nf3 Be7.} 11. a5 {[%emt 0:02:51]} Bd5 {[%emt 0:00:29]} 12. Qc2 {[%emt 0:00:53] [#]} Be4 $146 {[%emt 0:00:47] The position is equal.} ({Predecessor:} 12... c5 13. Nc3 cxd4 14. Nxd5 Nxd5 15. Bxe7 Qxe7 16. Nxd4 Rac8 17. Qb3 Nc5 18. Qa3 Qf6 {1-0 Bryakin,M (2432)-Preotu,R (2502) Titled Tuesday intern op 4th June blitz 2019 (4)}) 13. Qc1 {[%emt 0:01:56]} h6 {[%emt 0:02:21]} 14. Bxf6 {[%emt 0:00:44]} Nxf6 {[%emt 0:01:10]} 15. Nbd2 {[%emt 0:01:23]} Bc6 {[%emt 0:02:24]} 16. Qc2 {[%emt 0:05:01]} Nd5 {[%emt 0:10:07]} 17. Rfd1 {[%emt 0:08:12]} Nb4 {[%emt 0:03:05]} 18. Qc3 {[%emt 0:02:20]} Rc8 {[%emt 0:09:52]} 19. e4 {[%emt 0:27:27]} Qe8 {[%emt 0:16:29]} 20. Ne5 {[%emt 0:03:02]} Bb5 {[%emt 0:00:44]} 21. Ndc4 {[%emt 0:02:50][%cal Bd2c4,Bc4e3,Be3d5][%mdl 32]} Nc6 {[%emt 0:09:31]} 22. Nxc6 {[%emt 0:15:09]} Qxc6 {[%emt 0:15:39]} 23. Ne3 {[%emt 0:00:26]} Qe8 {[%emt 0:14:43]} 24. e5 {[%emt 0:04:06]} b6 {[%emt 0:05:57]} 25. b4 {[%emt 0:06:02]} Rb8 {[%emt 0:05:53]} (25... bxa5 $14 26. bxa5 (26. Rxa5 c6 $14) 26... c6) 26. d5 $16 {[%emt 0:02:32]} exd5 {[%emt 0:01:07]} 27. Nxd5 {[%emt 0:00:18]} (27. Qxc7 $6 bxa5 28. Qxa5 Bd8 $11) 27... c5 {[%emt 0:00:54][%mdl 8192]} (27... bxa5 $16 28. bxa5 (28. Rxa5 c6 $14) 28... c6) 28. bxc5 $2 {[%emt 0:03:12]} ({Not} 28. Nxb6 cxb4 29. Qc7 b3 $14) (28. axb6 c4 29. Qd4 Qd8 $18) (28. Nc7 $18 {and White stays clearly on top.} Qc8 29. Nxb5 axb5 30. a6) 28... Bxc5 {[%emt 0:00:34]} 29. Nc7 {[%emt 0:05:01]} Qc8 {[%emt 0:00:37] [#]} 30. Nxb5 {[%emt 0:00:04]} axb5 {[%emt 0:00:06]} 31. Rdc1 {[%emt 0:02:26] aiming for a6. White is much more active. The black rooks are badly placed.} Qf5 $2 {[%emt 0:01:33] [#] White now steadily converts the win.} (31... Qd8 $14) 32. Qc2 $1 $36 {[%emt 0:00:57][%mdl 2048] Keeping Black busy.} Qxc2 {[%emt 0:00:32]} (32... Qxe5 $142 33. a6 Qe7) 33. Rxc2 {[%emt 0:00:01]} Bd4 {[%emt 0:00:34]} 34. Rd1 {[%emt 0:00:12]} Rbd8 {[%emt 0:00:32]} 35. Rcd2 {[%emt 0:00:24] Strongly threatening a6.} Bxf2+ {[%emt 0:00:22]} 36. Kxf2 {[%emt 0:00:01]} Rxd2+ {[%emt 0:00:06]} 37. Rxd2 {[%emt 0:00:01] Hoping for a6.} bxa5 {[%emt 0:00:06][%mdl 4096] Endgame KRB-KR} 38. Bc6 {[%emt 0:04:54][%cal Od2d5] Threatens to win with Rd5!} Rb8 $2 {[%emt 0:00:38]} (38... b4 {was called for.} 39. Rd5 Rc8) 39. Rd5 {[%emt 0:00:16]} b4 {[%emt 0:00:24]} 40. Rxa5 {[%emt 0:00:13]} b3 {[%emt 0:00:04]} (40... Kf8 $18 41. Rb5 Rxb5 42. Bxb5 Ke7) 41. Ra8 {[%emt 0:02:35]} Rxa8 {[%emt 0:00:08]} 42. Bxa8 {[%emt 0:00:01] KB-KP} b2 {[%emt 0:00:27]} 43. Be4 {[%emt 0:00:00]} Kf8 {[%emt 0:00:25]} 44. Ke3 {[%emt 0:00:06] Threatening mate with Kd4.} Ke7 {[%emt 0:00:15]} 45. Bb1 {[%emt 0:00:06]} Ke6 {[%emt 0:01:14]} 46. Ke4 {[%emt 0:00:01]} f5+ {[%emt 0:01:01]} 47. exf6 {[%emt 0:00:26]} Kxf6 {[%emt 0:00:02] KB-K3P} 48. Kf4 {[%emt 0:00:09]} Ke6 {[%emt 0:00:29]} 49. Kg4 {[%emt 0:02:19]} Kf6 {[%emt 0:00:58]} 50. Kh5 {[%emt 0:00:02]} Kf7 {[%emt 0:00:07]} 51. Kg4 {[%emt 0:02:41]} Kf6 {[%emt 0:00:15]} 52. Kf4 {[%emt 0:01:24]} Ke6 {[%emt 0:00:21]} 53. h3 {[%emt 0:01:12] White mates.} Kf6 {[%emt 0:00:20]} 54. h4 {[%emt 0:00:22]} Ke6 {[%emt 0:00:26]} 55. g4 {[%emt 0:00:30][%cal Bg3g4,Bg4g5][%mdl 32]} Kf6 {[%emt 0:01:22]} 56. g5+ {[%emt 0:00:11]} Kf7 {[%emt 0:01:07]} 57. Kf5 {[%emt 0:01:27]} Kf8 {[%emt 0:00:43]} 58. Kg6 {[%emt 0:00:55]} Kg8 {[%emt 0:00:27]} 59. Ba2+ {[%emt 0:00:14]} ({And not} 59. gxh6 gxh6 60. Kxh6 Kh8 $11) 59... Kh8 {[%emt 0:00:14]} 60. Kf7 {[%emt 0:00:20]} ({Weaker is} 60. gxh6 gxh6 61. Kxh6 b1=B $11) 60... hxg5 {[%emt 0:00:55]} 61. hxg5 {[%emt 0:00:01][%cal Bh4g5,Bg5g6][%mdl 32] KB-KPP} Kh7 {[%emt 0:00:16]} 62. Bb1+ {[%emt 0:00:19]} g6 {[%emt 0:00:45]} 63. Kf6 {[%emt 0:00:09]} Kg8 {[%emt 0:00:16]} 64. Kxg6 {[%emt 0:00:07]} Kh8 {[%emt 0:00:03]} 65. Kh6 {[%emt 0:00:08]} Kg8 {[%emt 0:00:06]} 66. g6 {[%emt 0:00:03] Weighted Error Value: White=0.17 (very precise) /Black=0.80} 1-0

[Event "1000GM Memorial Day NY IM-B 2023"]
[Site "New York"]
[Date "2023.05.26"]
[Round "2.3"]
[White "Pang, Qi"]
[Black "Bisiriyu-Salam, Oluwaseun"]
[Result "1/2-1/2"]
[ECO "E01"]
[WhiteElo "2165"]
[BlackElo "2011"]
[Annotator "TA"]
[PlyCount "48"]
[EventDate "2023.05.23"]
[EventType "schev"]
[EventCountry "USA"]
[SourceTitle "playchess.com"]
[Source "ChessBase"]
[SourceQuality "1"]
[TimeControl "5400+30"]

{[%evp 15,48,41,43,28,37,0,61,37,63,14,14,14,16,16,13,20,25,21,27,39,31,0,0,0,2,7,10,0,0,0,14,0,7,6,14]} 1. Nf3 {[%emt 0:00:04]} d5 {[%emt 0:09:27]} 2. d4 {[%emt 0:00:08]} Nf6 {[%emt 0:00:10]} 3. g3 {[%emt 0:00:18]} c5 {[%emt 0:00:44]} 4. Bg2 {[%emt 0:01:12]} Nc6 {[%emt 0:00:35]} 5. O-O {[%emt 0:00:10]} e6 {[%emt 0:01:46]} 6. c4 {[%emt 0:01:26]} cxd4 {[%emt 0:03:36]} 7. Nxd4 {[%emt 0:00:17][%cal Bf3d4,Bd4b3,Bb3d2,Bd2c4][%mdl 32]} Bc5 {[%emt 0:00:59]} 8. Nb3 {[%emt 0:00:21]} Be7 {[%emt 0:00:20] 8...Bb6 might become the main line.} 9. Nc3 {[%emt 0:01:16][%cal Rc4d5] E01: Catalan: Early deviations.} dxc4 {[%emt 0:01:58] [#] Hoping for ...Qxd1.} 10. Nd2 {[%emt 0:00:15]} Nd5 {[%emt 0:05:26]} (10... Ne5 $11) 11. Nxc4 $14 {[%emt 0:01:30][%cal Rc3d5] White is slightly better.} Nxc3 {[%emt 0:00:42]} 12. Qxd8+ {[%emt 0:03:49]} (12. bxc3 $14 O-O 13. Bf4) 12... Nxd8 $11 {[%emt 0:01:08]} 13. bxc3 {[%emt 0:00:12]} Bd7 $1 {[%emt 0:00:29] [#]} 14. Rb1 $146 {[%emt 0:14:26][%cal Oc4a5]} ({Predecessor:} 14. Na5 Rc8 15. Nxb7 Nxb7 16. Bxb7 Rxc3 17. Bb2 Rc7 18. Ba6 f6 19. Rac1 Rxc1 20. Rxc1 Bd6 21. Bd4 Ke7 22. f4 Rb8 23. Bd3 h6 24. Bxa7 {½-½ Rajkovic,D (2465)-Elyoseph,H (2320) Haringey London 1989}) 14... Rc8 {[%emt 0:01:50]} 15. Ne5 {[%emt 0:00:47] aiming for Nxd7.} b6 {[%emt 0:02:39]} 16. Nxd7 {[%emt 0:09:09]} Kxd7 {[%emt 0:00:16]} 17. Rd1+ {[%emt 0:00:07]} Ke8 {[%emt 0:00:24]} 18. a4 {[%emt 0:03:07][%cal Oa4a5]} Nc6 {[%emt 0:08:15] The position is equal.} 19. Bxc6+ {[%emt 0:06:09]} Rxc6 {[%emt 0:00:14]} 20. Bf4 {[%emt 0:00:16]} g5 {[%emt 0:13:09]} 21. Bb8 {[%emt 0:02:02]} Bc5 {[%emt 0:04:57]} 22. Be5 {[%emt 0:12:05]} (22. Bxa7 $5 Ke7 $8 23. a5 bxa5 24. Bxc5+ Rxc5 25. Rb7+ Kf6 26. Rdd7 $11) 22... Rg8 {[%emt 0:00:13]} 23. Bf6 {[%emt 0:02:04][%csl Gf6][%cal Rd1d8] [#]} Be7 {[%emt 0:00:35] Prevents Rd8+.} 24. Bd4 {[%emt 0:00:09]} Bc5 {[%emt 0:04:50] Weighted Error Value: White=0.13 (very precise) /Black=0.11 (very precise)} 1/2-1/2